bitfinex-derivatives/quotes_SOLF0:USTF0_20260316
["timestamp","ask_amount","ask_price","bid_price","bid_amount"]
[1773695569557,3.82840387,95.99,95.941,4.57907828]
[1773695570167,3.82840387,96.0,95.941,4.57907828]
[1773695570966,3.82130521,96.0,95.941,4.57907828]
[1773695572568,3.82130521,95.99,95.941,4.57907828]
[1773695573764,32.82,96.009,95.941,4.57907828]
[1773695573964,3.82130521,95.99,95.941,4.57907828]
[1773695577263,32.82,96.009,95.941,4.57907828]
[1773695577464,3.82130521,96.0,95.941,4.57907828]
[1773695578368,3.82130521,95.98,95.928,4.69845346]
[1773695580261,3.82130521,95.99,95.928,4.69845346]
[1773695580664,174.93518167,96.017,95.951,4.71151977]
[1773695580863,3.82130521,96.02,95.951,4.71151977]
[1773695581368,12.86513168,96.104,95.991,3.83354831]
[1773695581566,12.86513168,96.104,95.929,104.238]
[1773695581567,0.08463125,96.165,96.09,7.65485352]
[1773695581764,11.07099069,96.17,96.13,3.82130521]
[1773695581960,0.08463125,96.149,96.074,3.83354831]
[1773695582165,0.08463125,96.105,96.035,3.83354831]
[1773695582367,0.08463125,96.089,96.02,3.82130521]
[1773695582558,0.07675734,96.128,96.06,3.83748527]
[1773695582963,0.07675734,96.127,96.07,3.82130521]
[1773695583166,0.07675734,96.127,96.019,9.53774283]
[1773695583167,0.07675734,96.127,96.016,3.83748527]
[1773695583363,0.07675734,96.109,96.031,3.78878763]
[1773695583568,3.82130521,96.1,96.031,3.78878763]
[1773695583765,0.17415261,96.099,96.031,3.78878763]
[1773695584160,32.82,96.109,96.031,3.78878763]
[1773695584161,0.17415261,96.089,96.031,3.78878763]
[1773695584464,3.51458122,96.059,95.98,3.82130521]
[1773695584671,3.82130521,96.04,95.97,3.82130521]
[1773695584860,3.82130521,96.04,95.899,12.94008962]
[1773695584861,3.51458122,96.019,95.94,3.82130521]
[1773695585064,3.82130521,96.01,95.94,3.82130521]
[1773695585260,3.82130521,96.01,95.887,32.82]
[1773695585261,7.33588643,96.0,95.93,3.82130521]
[1773695585465,7.33588643,95.99,95.91,3.82130521]
[1773695585668,3.51458122,95.989,95.91,3.82130521]
[1773695586372,3.51458122,95.989,95.911,3.7130519]
[1773695586669,32.8,95.997,95.911,3.7130519]
[1773695586670,7.33588643,95.98,95.911,3.7130519]
[1773695586864,3.51458122,95.98,95.911,3.7130519]
[1773695587566,3.51458122,95.966,95.881,3.7130519]
[1773695588069,3.51458122,95.954,95.881,3.7130519]
[1773695588569,3.51458122,95.951,95.881,3.7130519]
[1773695588770,3.51458122,95.951,95.846,3.7130519]
[1773695588970,3.51458122,95.949,95.846,3.7130519]
[1773695589169,3.51458122,95.949,95.819,32.82]
[1773695589170,3.51458122,95.949,95.861,3.7130519]
[1773695589765,3.51458122,95.946,95.861,3.7130519]
[1773695589971,1.70312375,95.946,95.861,3.7130519]
[1773695590173,9.73963886,95.933,95.861,3.7130519]
[1773695590371,1.70312375,95.946,95.861,3.7130519]
[1773695591170,32.82,95.95,95.861,3.7130519]
[1773695591964,2.07960366,95.949,95.861,3.7130519]
[1773695592164,32.82,95.95,95.861,3.7130519]
[1773695592165,2.07960366,95.943,95.861,3.7130519]
[1773695593165,2.08125417,95.939,95.861,3.7130519]
[1773695593571,2.06855689,95.921,95.834,3.7130519]
[1773695593972,2.06855689,95.921,95.689,1.81485837]
[1773695593973,2.06855689,95.921,95.841,3.7130519]
[1773695596377,41.92309484,95.95,95.841,3.7130519]
[1773695596378,1.96929752,95.917,95.841,3.7130519]
[1773695598174,1.8146691,95.966,95.841,3.7130519]
[1773695598379,2.0368465,95.938,95.841,3.7130519]
[1773695598774,1.99809529,95.925,95.841,3.7130519]
[1773695599477,1.99809529,95.923,95.841,3.7130519]
[1773695599684,1.96502144,95.919,95.801,3.7130519]
[1773695600286,1.96502144,95.906,95.801,3.7130519]
[1773695600483,1.96098572,95.905,95.801,3.7130519]
[1773695602388,1.96098572,95.905,95.821,3.7130519]
[1773695602593,32.84,95.922,95.821,3.7130519]
[1773695602890,1.95600967,95.926,95.841,3.69381125]
[1773695609186,32.84,95.955,95.841,3.69381125]
[1773695609187,1.96845549,95.925,95.841,3.69381125]
[1773695609798,1.97416079,95.921,95.841,3.69381125]
[1773695611997,1.97524033,95.919,95.841,3.69381125]
[1773695612395,32.84,95.955,95.841,3.69381125]
[1773695612396,9.73963886,95.918,95.841,3.69381125]
[1773695612594,1.97512802,95.917,95.841,3.69381125]
[1773695614399,9.73963886,95.905,95.841,3.69381125]
[1773695614596,1.97512802,95.917,95.841,3.69381125]
[1773695615503,9.73963886,95.91,95.841,3.69381125]
[1773695616005,9.73963886,95.905,95.841,3.69381125]
[1773695616297,1.97512802,95.917,95.841,3.69381125]
[1773695616499,1.99047601,95.902,95.841,3.69381125]
[1773695618607,1.98928545,95.883,95.801,3.69381125]
[1773695619201,1.98928545,95.919,95.801,3.69381125]
[1773695619503,1.98928545,95.899,95.801,3.69381125]
[1773695619800,1.98946124,95.915,95.821,3.69381125]
[1773695620903,9.73963886,95.898,95.821,3.69381125]
[1773695621104,1.98946124,95.915,95.821,3.69381125]
[1773695621408,9.73963886,95.883,95.821,3.69381125]
[1773695621608,1.98599868,95.894,95.821,3.69381125]
[1773695623305,1.98599868,95.894,95.804,3.69381125]
[1773695623512,1.98600624,95.884,95.804,3.69381125]
[1773695625110,1.96791029,95.862,95.804,3.69381125]
[1773695625507,1.96791029,95.862,95.763,32.84]
[1773695625508,9.73963886,95.819,95.764,3.69381125]
[1773695625809,1.96791029,95.862,95.764,3.69381125]
[1773695627505,9.73963886,95.838,95.764,3.69381125]
[1773695627701,1.96791029,95.862,95.764,3.69381125]
[1773695629113,9.73963886,95.829,95.767,3.69381125]
[1773695629314,1.96791029,95.862,95.767,3.69381125]
[1773695629812,1.83441534,95.846,95.767,3.69381125]
[1773695630204,1.83441534,95.846,95.763,32.84]
[1773695630205,1.83441534,95.846,95.771,3.69381125]
[1773695631211,1.83441534,95.846,95.775,3.69381125]
[1773695632213,1.83441534,95.846,95.778,3.69381125]
[1773695633313,1.83441534,95.846,95.785,3.48878836]
[1773695637207,9.73963886,95.812,95.785,3.48878836]
[1773695637610,1.83441534,95.846,95.785,3.48878836]
[1773695638210,9.73963886,95.812,95.785,3.48878836]
[1773695638417,1.83441534,95.846,95.785,3.48878836]
[1773695639820,9.73963886,95.818,95.785,3.48878836]
[1773695640120,1.83441534,95.846,95.785,3.48878836]
[1773695640316,9.73963886,95.818,95.785,3.48878836]
[1773695640616,1.83441534,95.846,95.785,3.48878836]
[1773695641816,9.73963886,95.819,95.785,3.48878836]
[1773695642015,1.83441534,95.846,95.785,3.48878836]
[1773695642418,1.83441534,95.846,95.764,3.67832971]
[1773695642818,9.73963886,95.821,95.764,3.67832971]
[1773695643022,1.83441534,95.846,95.788,2.087]
[1773695643523,2.08008108,95.827,95.788,2.087]
[1773695644813,9.73963886,95.812,95.795,2.087]
[1773695645022,2.08008108,95.827,95.795,2.087]
[1773695645323,2.08008108,95.827,95.77,3.67832971]
[1773695645324,9.73963886,95.808,95.77,3.67832971]
[1773695645522,2.08008108,95.827,95.77,3.67832971]
[1773695645824,9.73963886,95.812,95.77,3.67832971]
[1773695646019,2.08008108,95.827,95.77,3.67832971]
[1773695650420,9.73963886,95.814,95.77,3.67832971]
[1773695650717,1.94474914,95.843,95.78,3.83387548]
[1773695650924,9.73963886,95.814,95.781,3.67832971]
[1773695651224,1.99136171,95.829,95.781,3.67832971]
[1773695652314,1.99101052,95.849,95.781,3.67832971]
[1773695652824,1.99101052,95.849,95.791,3.67832971]
[1773695653021,1.99602222,95.884,95.821,3.67832971]
[1773695653226,1.99602222,95.899,95.841,3.67832971]
[1773695653822,1.99577323,95.894,95.841,3.67832971]
[1773695654321,9.73963886,95.886,95.841,3.67832971]
[1773695654524,1.99577323,95.894,95.841,3.67832971]
[1773695659424,9.73963886,95.871,95.841,3.67832971]
[1773695659630,1.99577323,95.894,95.841,3.67832971]
[1773695660428,9.73963886,95.87,95.841,3.67832971]
[1773695660734,1.99577323,95.894,95.841,3.67832971]
[1773695661935,9.73963886,95.877,95.841,3.67832971]
[1773695662133,1.99577323,95.894,95.841,3.67832971]
[1773695662435,9.73963886,95.876,95.841,3.67832971]
[1773695662628,1.99577323,95.894,95.841,3.67832971]
[1773695663430,9.73963886,95.878,95.841,3.67832971]
[1773695663737,1.99577323,95.894,95.841,3.67832971]
[1773695663936,9.73963886,95.883,95.841,3.67832971]
[1773695664234,1.99577323,95.894,95.841,3.67832971]
[1773695666539,1.78570315,95.881,95.825,3.59441244]
[1773695667045,9.73963886,95.865,95.825,3.59441244]
[1773695667237,1.78570315,95.881,95.825,3.59441244]
[1773695667646,1.81654168,95.901,95.825,3.59441244]
[1773695668136,9.11766641,95.91,95.825,3.59441244]
[1773695668137,1.81654168,95.884,95.825,3.59441244]
[1773695668539,9.73963886,95.863,95.825,3.59441244]
[1773695668846,1.81654168,95.884,95.825,3.59441244]
[1773695669045,9.73963886,95.869,95.825,3.59441244]
[1773695669245,1.81654168,95.884,95.825,3.59441244]
[1773695669645,9.73963886,95.866,95.825,3.59441244]
[1773695669844,1.81654168,95.884,95.825,3.59441244]
[1773695670041,9.73963886,95.874,95.825,3.59441244]
[1773695670243,1.81654168,95.884,95.825,3.59441244]
[1773695670646,9.73963886,95.862,95.825,3.59441244]
[1773695670945,1.81654168,95.884,95.825,3.59441244]
[1773695671136,9.73963886,95.869,95.825,3.59441244]
[1773695671337,1.81654168,95.884,95.825,3.59441244]
[1773695671644,9.73963886,95.87,95.825,3.59441244]
[1773695671947,1.81654168,95.884,95.825,3.59441244]
[1773695672147,9.73963886,95.869,95.825,3.59441244]
[1773695672446,1.81654168,95.884,95.825,3.59441244]
[1773695673143,9.73963886,95.865,95.825,3.59441244]
[1773695673451,1.81654168,95.884,95.825,3.59441244]
[1773695674149,1.74000707,95.923,95.835,3.59441244]
[1773695674343,1.74000707,95.923,95.843,3.59441244]
[1773695674846,1.74058124,95.909,95.843,3.59441244]
[1773695675748,9.73963886,95.894,95.843,3.59441244]
[1773695676052,1.74058124,95.909,95.843,3.59441244]
[1773695676252,9.73963886,95.887,95.843,3.59441244]
[1773695676451,1.74058124,95.909,95.843,3.59441244]
[1773695678037,1.74058124,95.909,95.851,3.59441244]
[1773695678949,9.73963886,95.883,95.851,3.59441244]
[1773695679144,1.74058124,95.909,95.851,3.59441244]
[1773695679845,9.73963886,95.883,95.851,3.59441244]
[1773695680148,1.74058124,95.909,95.851,3.59441244]
[1773695681346,9.73963886,95.885,95.851,3.59441244]
[1773695681751,1.74058124,95.909,95.851,3.59441244]
[1773695682347,9.73963886,95.885,95.851,3.59441244]
[1773695682548,1.74058124,95.909,95.851,3.59441244]
[1773695682853,9.73963886,95.893,95.851,3.59441244]
[1773695683046,1.74058124,95.909,95.851,3.59441244]
[1773695683351,9.73963886,95.892,95.851,3.59441244]
[1773695683651,1.74058124,95.909,95.851,3.59441244]
[1773695683852,9.73963886,95.892,95.851,3.59441244]
[1773695684051,1.74058124,95.909,95.851,3.59441244]
[1773695684345,9.73963886,95.893,95.851,3.59441244]
[1773695684646,1.74058124,95.909,95.851,3.59441244]
[1773695684851,9.73963886,95.891,95.851,3.59441244]
[1773695685151,1.74058124,95.909,95.851,3.59441244]
[1773695685353,9.73963886,95.891,95.851,3.59441244]
[1773695685550,1.74058124,95.909,95.851,3.59441244]
[1773695685852,9.73963886,95.891,95.851,3.59441244]
[1773695686052,1.74058124,95.909,95.851,3.59441244]
[1773695686851,9.73963886,95.886,95.851,3.59441244]
[1773695687052,1.74058124,95.909,95.851,3.59441244]
[1773695688452,1.74058124,95.909,95.861,3.59441244]
[1773695689453,9.73963886,95.89,95.861,3.59441244]
[1773695689653,32.86,95.933,95.861,3.59441244]
[1773695689849,3.68492839,95.932,95.88,3.82868224]
[1773695690653,3.68492839,95.932,95.881,3.59441244]
[1773695692157,9.73963886,95.916,95.881,3.59441244]
[1773695692457,3.68492839,95.932,95.881,3.59441244]
[1773695692652,9.73963886,95.916,95.881,3.59441244]
[1773695692851,3.68492839,95.932,95.881,3.59441244]
[1773695693450,7.40494763,95.93,95.881,3.59441244]
[1773695693655,3.57878113,95.929,95.881,3.59441244]
[1773695694258,9.73963886,95.914,95.881,3.59441244]
[1773695694455,3.57878113,95.929,95.881,3.59441244]
[1773695695059,3.57878113,95.909,95.849,3.85929393]
[1773695695359,3.8261665,95.9,95.849,3.85929393]
[1773695695759,3.72133403,95.899,95.849,3.85929393]
[1773695697959,9.73963886,95.88,95.849,3.85929393]
[1773695698156,3.72133403,95.899,95.849,3.85929393]
[1773695698954,9.73963886,95.875,95.849,3.85929393]
[1773695699155,3.72133403,95.899,95.849,3.85929393]
[1773695699458,9.73963886,95.875,95.849,3.85929393]
[1773695699656,3.72133403,95.899,95.849,3.85929393]
[1773695700561,3.72133403,95.859,95.813,12.94008962]
[1773695700863,3.8261665,95.87,95.81,3.8261665]
[1773695701057,3.72133403,95.887,95.821,3.7041511]
[1773695701257,3.8261665,95.88,95.821,3.7041511]
[1773695701463,3.72133403,95.887,95.831,3.7041511]
[1773695701763,3.72133403,95.903,95.851,3.7041511]
[1773695702362,9.73963886,95.894,95.851,3.7041511]
[1773695702559,3.72133403,95.919,95.851,3.7041511]
[1773695703262,3.38750053,95.92,95.851,3.7041511]
[1773695703460,9.73963886,95.903,95.851,3.7041511]
[1773695703657,9.73963886,95.903,95.823,32.84]
[1773695703658,3.38750053,95.92,95.861,3.7041511]
[1773695703856,9.73963886,95.905,95.861,3.7041511]
[1773695704057,3.38750053,95.92,95.861,3.7041511]
[1773695704355,9.73963886,95.904,95.861,3.7041511]
[1773695704559,3.38750053,95.92,95.861,3.7041511]
[1773695704962,9.73963886,95.902,95.861,3.7041511]
[1773695705162,3.8261665,95.93,95.861,3.7041511]
[1773695705366,1.53581594,95.929,95.861,3.7041511]
[1773695705969,1.53468349,95.919,95.861,3.7041511]
[1773695707068,9.73963886,95.907,95.861,3.7041511]
[1773695707263,1.53468349,95.919,95.861,3.7041511]
[1773695707463,9.73963886,95.909,95.861,3.7041511]
[1773695707766,1.53468349,95.919,95.861,3.7041511]
[1773695708468,3.8261665,95.9,95.861,3.7041511]
[1773695709166,1.53219656,95.909,95.861,3.7041511]
[1773695711071,9.73963886,95.892,95.861,3.7041511]
[1773695711268,1.53219656,95.909,95.861,3.7041511]
[1773695712467,3.72133403,95.927,95.871,3.7041511]
[1773695713463,18.755,95.968,95.881,3.7041511]
[1773695713464,3.72133403,95.94,95.881,3.7041511]
[1773695714563,7.54750053,95.94,95.881,3.7041511]
[1773695715175,3.8261665,95.95,95.891,3.7041511]
[1773695715475,3.72133403,95.954,95.846,18.779]
[1773695715476,3.72133403,95.954,95.901,3.7041511]
[1773695717178,3.72133403,95.949,95.881,3.7041511]
[1773695717471,3.72133403,95.939,95.864,12.94008962]
[1773695717666,3.72133403,95.939,95.816,25.43304831]
[1773695717667,3.8261665,95.93,95.865,3.7041511]
[1773695717870,3.72133403,95.929,95.865,3.7041511]
[1773695718272,3.72133403,95.919,95.865,3.7041511]
[1773695719473,3.72133403,95.909,95.865,3.7041511]
[1773695719975,3.72133403,95.909,95.85,3.7041511]
[1773695720172,3.72133403,95.909,95.851,3.7041511]
[1773695720368,3.72133403,95.909,95.861,3.7041511]
[1773695725983,32.84,95.962,95.823,32.84]
[1773695725984,3.75266104,95.924,95.871,3.69776086]
[1773695726183,3.75266104,95.924,95.832,19.37962378]
[1773695726184,3.8261665,95.96,95.891,3.69776086]
[1773695726382,7.57882754,95.96,95.891,3.69776086]
[1773695726581,3.75266104,95.959,95.891,3.69776086]
[1773695726983,3.75266104,95.959,95.901,3.69776086]
[1773695727183,3.75266104,95.959,95.911,3.69776086]
[1773695729179,174.26097723,95.965,95.911,3.69776086]
[1773695729383,3.75266104,95.974,95.921,3.69776086]
[1773695734193,3.75266104,95.979,95.921,3.69776086]
[1773695734490,3.75266104,95.989,95.931,3.69776086]
[1773695734686,3.75266104,95.989,95.941,3.69776086]
[1773695735287,3.8261665,96.0,95.941,3.69776086]
[1773695735288,3.75266104,95.999,95.941,3.69776086]
[1773695735682,3.75266104,95.999,95.951,3.69776086]
[1773695737882,3.75266104,96.017,95.961,3.69776086]
[1773695738091,3.75266104,96.009,95.961,3.69776086]
[1773695740492,3.75266104,95.999,95.918,3.69776086]
[1773695740697,3.8261665,95.99,95.931,3.69776086]
[1773695741097,3.75266104,95.999,95.941,3.87508936]
[1773695741898,3.73581618,95.989,95.941,3.87508936]
[1773695742094,3.8261665,95.98,95.941,3.87508936]
[1773695742295,3.73581618,95.979,95.921,3.87508936]
[1773695742793,3.73581618,96.036,95.921,3.87508936]
[1773695742998,3.73581618,96.009,95.951,0.67180748]
[1773695743204,7.56198268,96.0,95.951,0.67180748]
[1773695743500,3.73581618,95.999,95.951,0.67180748]
[1773695746108,3.73581618,96.016,95.951,0.67180748]
[1773695746293,3.8261665,96.01,95.951,0.67180748]
[1773695746602,3.73581618,96.009,95.951,0.67180748]
[1773695751596,3.73581618,95.999,95.951,0.67180748]
[1773695752505,3.8261665,96.01,95.951,0.67180748]
[1773695752701,3.74505102,96.015,95.951,0.67180748]
[1773695754004,3.74505102,96.031,95.981,0.95988379]
[1773695754193,3.74505102,96.031,95.971,0.95988379]
[1773695754395,3.74505102,95.989,95.92,0.95988379]
[1773695754597,3.74505102,95.969,95.92,0.95988379]
[1773695756101,3.74505102,95.969,95.882,45.76008962]
[1773695756102,3.53542568,95.949,95.905,0.76296423]
[1773695756301,3.53542568,95.949,95.882,32.82]
[1773695756302,3.53542568,95.964,95.911,0.76296423]
[1773695756905,3.81958417,95.96,95.911,0.76296423]
[1773695757100,3.53542568,95.959,95.911,0.76296423]
[1773695759508,3.81958417,95.95,95.911,0.76296423]
[1773695759908,3.53542568,95.959,95.911,0.76296423]
[1773695760909,3.81958417,95.95,95.891,1.02956105]
[1773695761102,3.53542568,95.959,95.901,1.02956105]
[1773695761299,3.81958417,95.95,95.901,1.02956105]
[1773695762202,3.53542568,95.949,95.901,1.02956105]
[1773695767108,3.53542568,95.949,95.91,3.81958417]
[1773695767309,3.53542568,95.969,95.911,1.03978823]
[1773695767512,3.53542568,95.959,95.911,1.03978823]
[1773695767708,3.53542568,95.959,95.898,1.03823664]
[1773695767913,3.53542568,95.949,95.888,1.03823664]
[1773695768214,3.53542568,95.949,95.883,42.45541354]
[1773695768215,3.53542568,95.949,95.891,1.03823664]
[1773695768512,3.53542568,95.949,95.892,1.03823664]
[1773695770215,3.53542568,95.949,95.893,1.04001086]
[1773695771315,3.53542568,95.939,95.884,9.63541354]
[1773695771514,3.53542568,95.929,95.87,3.81958417]
[1773695772112,3.53542568,95.929,95.864,1.0371541]
[1773695774017,3.53542568,95.929,95.871,1.05510145]
[1773695775715,3.53542568,95.919,95.863,32.82]
[1773695776213,3.53542568,95.919,95.864,1.10095112]
[1773695777117,3.53542568,95.919,95.871,1.11044303]
[1773695777415,3.53542568,95.919,95.88,3.81958417]
[1773695777719,3.53542568,95.939,95.891,1.0982347]
[1773695778217,3.53542568,95.959,95.901,1.0982347]
[1773695778416,3.53542568,95.959,95.911,1.0982347]
[1773695779214,3.53542568,95.959,95.92,3.81958417]
[1773695780118,3.53542568,95.959,95.911,1.0982347]
[1773695780620,3.81958417,95.97,95.911,1.1213152]
[1773695780822,3.53542568,95.969,95.92,3.81958417]
[1773695781111,3.53542568,95.969,95.92,4.94089937]
[1773695781313,3.53542568,95.999,95.93,3.81958417]
[1773695781618,3.53542568,95.999,95.921,1.1213152]
[1773695781619,3.53542568,95.999,95.94,3.81958417]
[1773695782510,3.53542568,95.999,95.931,1.09752027]
[1773695782919,3.53542568,95.999,95.94,3.81958417]
[1773695783118,3.5850367,96.037,95.951,1.05668774]
[1773695783415,3.5850367,96.037,95.98,3.81958417]
[1773695785014,3.5850367,96.037,95.971,1.05668774]
[1773695785818,3.5850367,96.037,95.97,3.81958417]
[1773695785819,3.5850367,96.037,95.99,3.81958417]
[1773695786020,3.5850367,96.052,96.0,3.81958417]
[1773695786819,3.5850367,96.052,95.991,1.05932688]
[1773695788925,3.5850367,96.052,96.0,3.81958417]
[1773695789327,3.5850367,96.052,95.991,1.05932688]
[1773695789518,3.5850367,96.049,95.976,1.03771445]
[1773695789726,3.5850367,96.049,95.98,3.81958417]
[1773695791228,3.5850367,96.049,95.991,1.03748996]
[1773695793433,3.5850367,96.049,95.985,1.03477246]
[1773695794130,3.5850367,96.049,95.99,3.81958417]
[1773695794931,3.5850367,96.049,96.0,3.81958417]
[1773695795532,3.5850367,96.049,95.991,0.98583295]
[1773695798032,32.84,96.096,95.95,18.758]
[1773695798033,3.5850367,96.039,95.98,3.81958417]
[1773695798231,3.5850367,96.039,95.981,0.97358496]
[1773695798429,3.5850367,96.039,95.99,3.81958417]
[1773695800238,3.5850367,96.039,96.0,3.81958417]
[1773695800436,3.5850367,96.059,96.001,0.99301851]
[1773695801339,3.81958417,96.01,95.956,0.98872864]
[1773695801633,32.84,96.096,95.941,9.59174885]
[1773695801634,3.5850367,95.999,95.941,1.02094152]
[1773695802829,3.81958417,95.98,95.921,0.98837597]
[1773695803033,3.5850367,95.979,95.921,0.98837597]
[1773695804040,3.5850367,95.979,95.93,3.81958417]
[1773695804939,3.5850367,95.979,95.931,1.00112844]
[1773695807738,3.5850367,95.969,95.901,1.01099887]
[1773695809248,3.5850367,95.999,95.931,1.00989826]
[1773695809445,3.5850367,95.989,95.931,1.00989826]
[1773695810443,3.81958417,95.98,95.92,3.81958417]
[1773695810643,3.81958417,95.96,95.913,1.10781972]
[1773695810952,3.5850367,95.959,95.913,1.10781972]
[1773695814249,18.742,96.033,95.913,1.10781972]
[1773695814455,3.67032718,95.999,95.93,3.81958417]
[1773695814753,3.67032718,95.989,95.93,3.82188746]
[1773695815544,3.67032718,95.989,95.94,3.82188746]
[1773695815949,3.67032718,95.989,95.901,18.768]
[1773695815950,3.67032718,95.989,95.95,3.82188746]
[1773695816153,3.50426359,96.009,95.95,3.82188746]
[1773695816851,3.50426359,96.009,95.951,1.13108175]
[1773695817055,3.50426359,96.009,95.961,1.13108175]
[1773695818555,3.50426359,95.999,95.944,1.13965591]
[1773695818946,3.50426359,95.989,95.92,3.82188746]
[1773695819656,3.50426359,95.989,95.93,3.82188746]
[1773695820054,3.50426359,95.989,95.92,3.82188746]
[1773695820248,3.50426359,95.989,95.93,3.82188746]
[1773695820753,3.50426359,95.989,95.921,1.13561119]
[1773695823245,3.50426359,95.989,95.917,9.59174885]
[1773695823246,3.50426359,95.989,95.933,1.12882678]
[1773695823446,3.50426359,96.029,95.943,1.12882678]
[1773695823650,3.50426359,96.029,95.954,1.10174382]
[1773695824452,3.50426359,96.029,95.955,1.10174382]
[1773695827763,3.50426359,96.029,95.941,12.94008962]
[1773695827961,3.50426359,96.019,95.929,1.11189569]
[1773695828456,3.50426359,96.019,95.912,3.4947907]
[1773695829057,3.50426359,96.049,95.931,3.4947907]
[1773695829257,3.50426359,96.029,95.931,3.4947907]
[1773695831961,3.50426359,96.065,95.941,3.4947907]
[1773695832259,3.50426359,96.065,95.961,3.4947907]
[1773695838872,3.50426359,96.11,96.001,3.4947907]
[1773695840063,3.50426359,96.11,96.02,9.09970604]
[1773695840263,9.63810876,96.172,96.041,3.4947907]
[1773695840464,3.50426359,96.169,96.061,3.4947907]
[1773695841471,3.50426359,96.169,96.071,3.4947907]
[1773695850277,15.67496032,96.17,96.071,3.4947907]
[1773695852284,1.29465391,96.169,96.071,3.4947907]
[1773695853278,1.29207617,96.149,96.071,3.4947907]
[1773695862889,1.29207617,96.149,96.091,3.53394523]
[1773695863291,1.1962647,96.139,96.091,3.53394523]
[1773695863491,3.80924085,96.14,96.039,18.741]
[1773695863492,1.1962647,96.129,96.071,3.53394523]
[1773695868989,1.11111508,96.149,96.071,3.53394523]
[1773695875893,1.30309316,96.169,96.071,3.53394523]
[1773695881902,9.07003339,96.16,96.071,3.53394523]
[1773695882101,1.33092206,96.159,96.071,3.53394523]
[1773695882704,9.07003339,96.16,96.059,12.94008962]
[1773695882705,1.33897157,96.15,96.059,12.94008962]
[1773695882901,9.07003339,96.1,96.035,3.76236506]
[1773695883201,1.33897157,96.099,96.035,3.76236506]
[1773695884812,1.51974079,96.079,95.982,3.76236506]
[1773695888704,1.49488564,96.059,95.982,3.76236506]
[1773695888900,9.07003339,96.06,95.982,3.76236506]
[1773695888901,1.49488564,96.057,95.982,3.76236506]
[1773695889302,1.49488564,96.039,95.982,3.76236506]
[1773695892320,1.49488564,96.039,95.966,3.76236506]
[1773695895011,1.30891929,96.019,95.926,3.76236506]
[1773695895519,1.30891929,96.049,95.941,3.76236506]
[1773695895717,1.34607637,96.048,95.941,3.76236506]
[1773695896812,3.81866878,96.05,95.981,3.76236506]
[1773695897011,3.81866878,96.06,96.001,3.76236506]
[1773695897820,3.81866878,96.06,95.99,3.81866878]
[1773695897821,3.81866878,96.08,96.021,3.76236506]
[1773695898412,3.81866878,96.07,96.021,3.76236506]
[1773695898620,1.25581915,96.083,96.021,3.76236506]
[1773695901118,1.25581915,96.083,95.975,3.76236506]
[1773695901320,1.22149699,96.059,95.975,3.76236506]
[1773695901621,1.21394206,96.058,95.975,3.76236506]
[1773695902820,1.43935432,96.039,95.935,3.81911251]
[1773695903022,1.43935432,96.02,95.935,3.81911251]
[1773695903220,1.43935432,96.009,95.935,3.81911251]
[1773695909331,1.7352223,96.028,95.935,3.81911251]
[1773695920730,1.7352223,96.028,95.961,3.81911251]
[1773695923635,3.81943201,96.01,95.961,3.81911251]
[1773695923944,5.40300039,96.0,95.941,3.81911251]
[1773695925036,1.58356838,96.0,95.941,3.81911251]
[1773695926041,1.5901055,95.999,95.941,3.81911251]
[1773695926237,3.81943201,95.98,95.925,3.81911251]
[1773695926438,1.5901055,95.979,95.925,3.81911251]
[1773695926741,1.57853219,96.0,95.931,3.81911251]
[1773695927042,1.57853219,96.0,95.95,3.81943201]
[1773695927645,1.57853219,96.0,95.944,3.81911251]
[1773695928445,1.57853219,96.0,95.9,12.90959396]
[1773695928446,1.53102757,95.999,95.901,7.94570412]
[1773695928645,3.81943201,95.94,95.901,7.94570412]
[1773695928842,3.81943201,95.92,95.871,7.94238928]
[1773695932750,9.11394245,95.95,95.871,7.94238928]
[1773695936756,9.11331607,95.95,95.871,7.94238928]
[1773695939148,9.11331607,95.95,95.872,7.89457415]
[1773695940355,9.11331607,95.95,95.874,7.89487321]
[1773695941661,9.11331607,95.97,95.888,7.91004201]
[1773695942660,32.82,95.983,95.892,7.90637241]
[1773695943266,32.82,95.983,95.906,7.90637241]
[1773695944463,32.82,95.983,95.908,7.90755094]
[1773695948074,32.82,95.983,95.908,9.99255094]
[1773695948272,32.82,95.983,95.909,7.80831028]
[1773695949676,32.82,95.983,95.913,7.8084458]
[1773695950173,32.82,95.983,95.842,19.24926836]
[1773695950174,32.82,95.983,95.879,7.8084458]
[1773695950371,9.11331607,95.95,95.879,7.8084458]
[1773695952278,18.752,95.98,95.879,7.8084458]
[1773695952477,9.11331607,95.96,95.879,7.8084458]
[1773695952874,3.82684583,95.93,95.879,7.8084458]
[1773695953580,3.82684583,95.93,95.881,7.75192326]
[1773695953883,3.82684583,95.94,95.881,7.75192326]
[1773695954378,3.82684583,95.95,95.891,7.75177276]
[1773695955781,3.82684583,95.95,95.895,7.81547287]
[1773695956378,18.752,95.98,95.895,7.81547287]
[1773695956379,3.82684583,95.96,95.895,7.81547287]
[1773695956575,3.82684583,95.96,95.898,7.81521377]
[1773695957378,32.82,95.983,95.9,7.81521377]
[1773695957580,3.82684583,95.95,95.9,7.81521377]